Cogmind - Beta 14 @@@ ROGUE MODE // 2024.10.08 @ 14:36:27 Player: whitenitro0 Result: Destroyed by AG-27186 with Assembled Focal Cannon Performance ------------- Evolutions (3) 1500 Regions Visited (11) 2200 Robots Destroyed (220) 1100 Value Destroyed (7134) 7134 Prototype IDs (25) 500 Alien Tech Used (0) 0 Bonus (1473) 1473 TOTAL SCORE: 13907 Bonus ------- High Alert Combat Kills 529 Follower Combat Kills 85 Met Imprinter 300 Destroyed Z-Imprinter 1000 Friendly Fire -441 Cogmind --------- Core Integrity 0/700 Matter 300/300 Energy 290/290 System Corruption 0% Temperature Cool (18) Movement Walking (210) Ox1 Location -7/Deep Caves Parts ------- > --- POWER (1) -------- Improved Deuterium Engine > --- PROPULSION (3) --- Zionite Composite Leg I Zionite Composite Leg I Zionite Composite Leg I > --- UTILITY (6) ------ Experimental Heat Sink Huge Storage Unit Energy Filter Zionite Heavy Carapace Reflective Plating > --- WEAPON (3) ------- Heavy Riot Gun Precision Shock Rifle Improved EM Pulse Cannon > --- INVENTORY (25) --- Enhanced Nuclear Core Zionite Composite Leg I Experimental Heat Sink Huge Storage Unit High-capacity Matter Pod (108) Weapon Cycler Zionite Weapon Casing Reflective Plating Powered Armor Makeshift Hacking Suite Zionite Phaser-S Light EM Pulse Cannon EM Pulse Cannon EM Pulse Cannon Cooled Particle Cannon Bore Cannon Advanced EMP Blaster Missile Launcher Heavy Missile Launcher CPS Tube (2) Powered Hammer CR-A16's Pointy Stick Peak State ------------ > --- POWER ------------ Improved Deuterium Engine > --- PROPULSION ------- Zionite Composite Leg I Zionite Composite Leg I Zionite Composite Leg I > --- UTILITY ---------- Experimental Heat Sink Huge Storage Unit Energy Filter Zionite Heavy Carapace Reflective Plating > --- WEAPON ----------- Heavy Riot Gun Precision Shock Rifle Advanced EMP Blaster > --- INVENTORY -------- Enhanced Nuclear Core Zionite Composite Leg I Experimental Heat Sink Huge Storage Unit High-capacity Matter Pod Weapon Cycler Zionite Weapon Casing Zionite Heavy Carapace Reflective Plating Powered Armor Makeshift Hacking Suite Zionite Phaser-S Light EM Pulse Cannon EM Pulse Cannon EM Pulse Cannon Improved EM Pulse Cannon Cooled Particle Cannon Bore Cannon Missile Launcher Heavy Missile Launcher CPS Tube Powered Hammer CR-A16's Pointy Stick [Rating: 72] Favorites ----------- Power Enhanced Nuclear Core Engine Improved Deuterium Engine Power Core Enhanced Nuclear Core Propulsion Medium Treads Treads Medium Treads Leg Improved Carbon-fiber Leg Wheel Armored Wheel Flight Unit Improved VTOL Module Utility Huge Storage Unit Device Advanced Heat Sink Storage Huge Storage Unit Processor Advanced Visual Processing Unit Hackware Hacking Suite Protection Hardened Medium Armor Plating Weapon Precision Beam Rifle Energy Gun Precision Beam Rifle Energy Cannon Cooled Particle Cannon Ballistic Gun Improved Assault Rifle Launcher Missile Launcher Impact Weapon Powered Hammer Slashing Weapon Makeshift Axe Special Melee Weapon Datajack Build | -11 -10 -10 -10 -9 -8 -8 -7 -7 -7 -7 -7 ------- Run | Yrd Mat Min Exi Min Mat Sto Fac Low Low Zio Dee Slots Evolved 6 | . . . . . 4 . 2 . . . . Power . | . . . . . . . . . . . . Propulsion 1 | . . . . . 1 . . . . . . Utility 4 | . . . . . 2 . 2 . . . . Weapon 1 | . . . . . 1 . . . . . . Parts Attached 231 | 7 14 4 5 4 47 48 42 3 20 11 26 Power 12 | 1 2 . 1 . 4 1 2 . . . 1 Engine 9 | 1 2 . . . 4 . 1 . . . 1 Core 3 | . . . 1 . . 1 1 . . . . Reactor . | . . . . . . . . . . . . Propulsion 45 | 2 3 . . . 13 12 5 2 4 1 3 Treads 18 | 2 1 . . . . 3 5 2 4 1 . Leg 22 | . . . . . 10 9 . . . . 3 Wheel 3 | . 2 . . . 1 . . . . . . Hover . | . . . . . . . . . . . . Flight 2 | . . . . . 2 . . . . . . Utility 58 | 2 3 1 . 1 12 4 11 . 6 7 11 Device 17 | 1 . . . . 3 1 5 . 1 4 2 Storage 8 | 1 2 . . 1 2 . 2 . . . . Processor 4 | . 1 . . . 1 . 1 . 1 . . Hackware 1 | . . . . . 1 . . . . . . Protection 28 | . . 1 . . 5 3 3 . 4 3 9 Artifact . | . . . . . . . . . . . . Weapon 116 | 2 6 3 4 3 18 31 24 1 10 3 11 Energy Gun 44 | 1 1 . 1 . 8 8 15 . 3 1 6 Energy Cannon 5 | . . . . . 2 . 1 . . 1 1 Ballistic Gun 32 | 1 2 2 1 2 7 12 . 1 4 . . Ballistic Cannon . | . . . . . . . . . . . . Launcher 18 | . . 1 . 1 . 7 2 . 3 . 4 Special Weapon . | . . . . . . . . . . . . Impact Weapon 11 | . . . . . . 4 6 . . 1 . Slashing Weapon 2 | . . . 1 . 1 . . . . . . Piercing Weapon . | . . . . . . . . . . . . Special Melee Weapon 4 | . 3 . 1 . . . . . . . . Unidentified Prototypes 24 | . . . . . 7 7 3 . . 2 5 Corrupted Parts 4 | . . . . . . 3 . . . 1 . System Corruption 15 | . . . . . . 13 . . . 2 . Parts Lost 32 | . . . . . 3 2 . 1 13 . 13 Power 1 | . . . . . . . . . . . 1 Propulsion 9 | . . . . . . 1 . . 5 . 3 Utility 14 | . . . . . 2 1 . . 5 . 6 Weapon 8 | . . . . . 1 . . 1 3 . 3 Highest Loss Streak 9 | . . . . . 1 1 . 1 5 . 9 To Critical Strikes . | . . . . . . . . . . . . Average Slot Usage (%) 96 | . 99 100 100 100 94 99 99 99 86 98 87 Engine 4 | . 14 14 4 . 7 2 2 . . . 5 Core 4 | . . . 9 14 1 6 4 7 7 7 1 Treads 12 | . 24 . . . . 1 23 23 19 21 5 Leg 7 | . . . . . 24 25 . . . . 14 Wheel 3 | . 2 28 28 28 1 . . . . . . Device 12 | . 7 . . . 9 9 17 23 10 19 16 Storage 8 | . 14 14 14 14 8 9 7 7 7 7 7 Processor 3 | . 6 . . . . . 6 7 3 7 2 Hackware 2 | . . . . . 5 9 4 . . . . Protection 9 | . . 13 14 14 8 8 7 7 13 10 13 Energy Gun 14 | . 12 6 . 14 14 10 21 17 12 17 15 Ballistic Gun 7 | . 11 21 11 13 12 14 . 4 9 . . Peak Build Rating 72 | 9 12 13 18 18 41 43 56 53 55 60 72 Average Rating 40 | 6 9 12 15 17 36 40 50 52 47 54 60 On Entrance 29 | . 9 12 12 17 18 39 39 53 53 51 56 Naked Turns . | . . . . . . . . . . . . Heaviest Build 120 | 15 49 53 54 55 110 111 112 107 113 112 120 Greatest Support 84 | 40 40 24 24 24 54 66 84 78 78 70 72 Greatest Overweight (x) 34 | . 3 2 2 2 3 2 1 1 2 2 34 Average Overweight (x) 1 | . . 1 2 2 1 1 1 1 1 1 1 Largest Inventory Capacity 25 | 8 20 20 20 20 25 25 25 25 25 25 25 Average Capacity 22 | 7 16 20 20 20 20 25 25 25 25 25 25 Most Carried 25 | 4 20 20 20 20 25 25 25 25 25 25 25 Average Carried 21 | 2 9 19 19 19 20 24 24 24 21 24 23 Final Capacity 25 | 8 20 20 20 20 25 25 25 25 25 25 25 Final Carried 25 | 4 20 20 20 20 25 24 25 25 25 25 22 Class Distribution -------------------- 48% | Tank 29% | Mutant 19% | Skirmisher Dominant Class ---------------- Mutant | -10/Materials Mutant | -10/Mines Mutant | -10/Exiles Mutant | -9/Mines Tank | -8/Materials Tank | -8/Storage Skirmisher | -7/Factory Skirmisher | -7/Lower Caves Tank | -7/Lower Caves Tank | -7/Zion Tank | -7/Deep Caves Resources | -11 -10 -10 -10 -9 -8 -8 -7 -7 -7 -7 -7 ----------- Run | Yrd Mat Min Exi Min Mat Sto Fac Low Low Zio Dee Matter Collected 5291 | 276 385 187 53 214 1098 1226 484 167 609 99 493 Remotely . | . . . . . . . . . . . . Salvage Created 9054 | 147 433 49 120 364 1735 2343 1808 265 1134 195 461 Parts 442 | 7 30 3 8 29 117 111 75 4 42 5 11 Haulers Intercepted 15 | . 2 . . . 5 6 2 . . . . Recyclers Shooed 2 | . . . . . . . 2 . . . . Parts Field Recycled . | . . . . . . . . . . . . Retrieved Matter . | . . . . . . . . . . . . Parts Self-Destructed 41 | . . . . . . . . 7 32 2 . Prevented 3 | . . . . . . . . . . 3 . Kills | -11 -10 -10 -10 -9 -8 -8 -7 -7 -7 -7 -7 ------- Run | Yrd Mat Min Exi Min Mat Sto Fac Low Low Zio Dee Combat Hostiles Destroyed 149 | . 8 4 . 8 28 37 25 3 23 . 13 Guns 106 | . 8 1 . 4 28 26 18 3 14 . 4 AOE 36 | . . 3 . 4 . 10 3 . 8 . 8 Classes Destroyed 21 | 3 4 . . 2 3 3 2 1 . . 3 Worker 12 | 2 1 . . . 4 2 3 . . . . Builder 6 | . . . . 1 4 1 . . . . . Tunneler 5 | 1 . . . 2 1 . 1 . . . . Hauler 15 | . 2 . . . 5 6 2 . . . . Recycler 18 | 1 . . . 3 6 3 5 . . . . Mechanic 2 | . . . . . . . 1 . 1 . . Operator 2 | . . . . . . 2 . . . . . Watcher 12 | . 3 . . . 5 2 2 . . . . Swarmer 20 | . 3 3 . 5 4 . 3 . 2 . . Grunt 66 | . 5 1 . 2 15 19 11 2 11 . . Brawler 6 | . . . . . . 3 . 1 2 . . Duelist 8 | . . . . . 1 2 2 . 3 . . Protector 1 | . . . . . . 1 . . . . . Sentry 26 | . . . . 2 6 12 3 . 3 . . Hunter 5 | . . . . . 1 . 2 . 2 . . Programmer 4 | . . . . . . . 4 . . . . Heavy 1 | . . . . . 1 . . . . . . Z-Light 8 | . . . . . . . . . . . 8 Samaritan 4 | . . . . . . . . 2 2 . . Assembled 3 | . . . . . . . . . . . 3 Golem 1 | . . . . . . . . . . . 1 Thug 1 | . . . . . . 1 . . . . . Best Kill Streak 7 | 3 3 3 . 4 5 7 6 2 7 . 5 Combat Bots Only 7 | . 2 3 . 4 4 7 4 2 7 . 5 Max Kills in Single Turn 5 | 1 1 3 . 3 2 5 3 1 4 . 2 Gunslinging . | . . . . . . . . . . . . Exploded 4 | . . 3 . 3 . 4 2 . 3 . 2 Melee . | . . . . . . . . . . . . Uniques/NPCs Destroyed 1 | . . . . . . . . . . . 1 Z-Imprinter (-7/Deep Caves) Combat | -11 -10 -10 -10 -9 -8 -8 -7 -7 -7 -7 -7 -------- Run | Yrd Mat Min Exi Min Mat Sto Fac Low Low Zio Dee Hostile Shots Fired 884 | . 56 3 . 30 108 136 184 9 248 . 110 Missed 262 | . 15 1 . 5 26 40 62 3 75 . 35 Damage Taken 9949 | . 416 24 . 372 1351 1633 1509 86 2223 . 2335 Core 1352 | . 68 . . 95 267 205 87 . 288 . 342 Absorbed by Shields . | . . . . . . . . . . . . Redirected to Shielding 150 | . . . . . . . . . . . 150 Ignored by Resistances 277 | . . . . . . . . . 34 . 243 Regen/Repaired (Parts) 915 | . 76 . . . 392 155 292 . . . . Core Remaining (%) 49 | 100 . . . 34 . 14 . . . . . Volleys Fired 547 | 8 56 7 11 34 121 95 91 15 68 16 25 Largest 3 | 2 2 2 1 2 3 3 3 3 3 1 3 Hottest 184 | 70 85 40 20 88 155 183 183 183 147 90 184 Shots Fired 1323 | 16 101 8 11 64 345 260 250 45 154 16 53 Gun 1263 | 16 101 6 11 60 343 246 245 45 143 13 34 Cannon 13 | . . . . . 2 . 1 . . 3 7 Launcher 47 | . . 2 . 4 . 14 4 . 11 . 12 Special . | . . . . . . . . . . . . Kinetic 523 | 8 56 6 11 30 157 182 . 7 66 . . Thermal 706 | 8 45 . . 30 188 64 241 38 77 3 12 Explosive 44 | . . 2 . 4 . 11 4 . 11 . 12 Electromagnetic 50 | . . . . . . 3 5 . . 13 29 Robot Hit Streak 33 | 4 14 2 5 9 18 12 33 10 21 25 9 Robot Miss Streak 14 | 1 4 1 1 9 14 6 4 2 2 1 5 Penetration Max 1 | . . . . . . 1 . . . . . Secondary Targets 14 | . 1 . . . 2 5 2 . 4 . . Max Gunslinging Chain 1 | . 1 . . . 1 1 1 . 1 . . Shots Hit Robots 921 | 8 66 3 14 48 247 179 174 28 110 12 32 Core Hits 613 | 5 26 5 6 40 233 121 66 11 61 4 35 Critical Kills 2 | . . . . . 1 1 . . . . . Critical Parts Destroyed 2 | . 1 . . 1 . . . . . . . Critical Strikes 32 | 2 4 . . 1 1 4 12 5 2 . 1 Burn 28 | 2 3 . . . . 3 12 5 2 . 1 Destroy 4 | . 1 . . 1 1 1 . . . . . Melee Attacks 24 | . 1 . 5 . . 4 10 . . 4 . Impact 18 | . . . . . . 4 10 . . 4 . Slashing . | . . . . . . . . . . . . Piercing . | . . . . . . . . . . . . Sneak Attacks 4 | . . . 4 . . . . . . . . Combat Hostiles 4 | . . . 4 . . . . . . . . Follow-up Attacks . | . . . . . . . . . . . . Damage Inflicted 19188 | 107 776 294 126 794 3694 4185 3471 523 3145 230 1843 Guns 14547 | 107 776 31 126 614 3535 3131 3182 523 1929 230 363 Cannons 129 | . . . . . 20 . . . . . 109 Explosions 4512 | . . 263 . 180 139 1054 289 . 1216 . 1371 Melee . | . . . . . . . . . . . . Ramming . | . . . . . . . . . . . . Kinetic 5370 | 46 389 31 126 224 1398 2342 . 51 763 . . Thermal 8833 | 61 387 . . 390 2296 789 3102 472 1166 . 170 Explosive 4044 | . . 263 . 180 . 796 270 . 1216 . 1319 Electromagnetic 941 | . . . . . . 258 99 . . 230 354 Impact . | . . . . . . . . . . . . Slashing . | . . . . . . . . . . . . Piercing . | . . . . . . . . . . . . Highest Corruption 15 | . . . . . . 15 3 3 5 5 . Average Corruption 3 | . . . . . . 7 1 3 3 3 . Corruption Purged . | . . . . . . . . . . . . Corruption Blocked . | . . . . . . . . . . . . Effects 99 | . . . . . . 21 13 22 41 2 . Message Errors 31 | . . . . . . 7 3 7 14 . . Matter Fused 29 | . . . . . . 6 2 5 14 2 . Heat Flow Errors 7 | . . . . . . 1 3 1 2 . . Energy Discharges 5 | . . . . . . 1 1 1 2 . . Parts Rejected 1 | . . . . . . . . . 1 . . Data Loss (minor) 7 | . . . . . . 1 1 3 2 . . Data Loss (major) 4 | . . . . . . 1 . . 3 . . Misfires 7 | . . . . . . 1 2 2 2 . . Alerts 4 | . . . . . . 3 . 1 . . . Weapon Failures 4 | . . . . . . . 1 2 1 . . Overload Shots 3 | . . . . . . . . . . 3 . Overflow Damage 171 | . . 5 . . 33 . 51 . 43 . 39 Projectiles . | . . . . . . . . . . . . Explosions 171 | . . 5 . . 33 . 51 . 43 . 39 Melee . | . . . . . . . . . . . . Knockbacks . | . . . . . . . . . . . . Impact . | . . . . . . . . . . . . Kinetic . | . . . . . . . . . . . . Secondary . | . . . . . . . . . . . . Self-Inflicted Damage 403 | . . . . 45 71 63 . . 21 . 203 Shots 12 | . . . . 2 1 3 . . 1 . 5 Rammed . | . . . . . . . . . . . . Targets Rammed . | . . . . . . . . . . . . Kicked . | . . . . . . . . . . . . Crushed . | . . . . . . . . . . . . Highest Temperature 496 | 45 117 4 . 243 297 289 496 216 377 . 227 Average Temperature 83 | 18 31 3 . 67 84 46 110 45 116 . 91 Received Heat Transfer 3423 | . 156 12 . 72 576 810 423 54 651 . 669 Effects 12 | . . . . . 4 3 3 . 2 . . Shutdowns 4 | . . . . . . . 2 . 2 . . Energy Bleed 1 | . . . . . 1 . . . . . . Interference 6 | . . . . . 3 3 . . . . . Short Circuit 1 | . . . . . . . 1 . . . . Siege Activations . | . . . . . . . . . . . . Robots Corrupted 1 | . . . . . . . . . . . 1 Combat Hostiles 1 | . . . . . . . . . . . 1 Parts Fried 4 | . . . . . . 1 . . . 3 . Impact Corruptions . | . . . . . . . . . . . . Robots Melted 6 | . . . . . . 1 4 . 1 . . Combat Hostiles 6 | . . . . . . 1 4 . 1 . . Parts Melted 45 | 2 2 . . . . 1 28 2 7 . 3 Heat Transferred 17804 | 333 1347 . . 475 2827 1614 7265 1369 2368 . 206 Parts Sabotaged . | . . . . . . . . . . . . Parts Stolen . | . . . . . . . . . . . . Parts Stripped . | . . . . . . . . . . . . Power Chain Reactions 3 | . . . . . . 1 1 . . . 1 Alert | -11 -10 -10 -10 -9 -8 -8 -7 -7 -7 -7 -7 ------- Run | Yrd Mat Min Exi Min Mat Sto Fac Low Low Zio Dee Peak Influence 926 | 20 197 196 . 197 501 926 515 . . . . Initial 287 | . 13 53 . . 17 135 287 . . . . Average 255 | 3 65 67 . 42 303 551 259 . . . . Maximum Alert Level 3 | . . . . . 2 3 2 . . . . Low Security (%) 49 | 100 100 100 . 100 19 3 44 . . . . Level 1 24 | . . . . . 60 8 30 . . . . Level 2 23 | . . . . . 19 73 24 . . . . Level 3 2 | . . . . . . 14 . . . . . Level 4 . | . . . . . . . . . . . . Level 5 . | . . . . . . . . . . . . High Security . | . . . . . . . . . . . . Max Security . | . . . . . . . . . . . . Squads Dispatched 19 | . 1 . . . 2 5 10 . 1 . . Investigation 5 | . 1 . . . 1 1 2 . . . . Extermination 4 | . . . . . . . 4 . . . . Reinforcement 5 | . . . . . 1 1 3 . . . . Assault 4 | . . . . . . 2 1 . 1 . . Garrison 1 | . . . . . . 1 . . . . . Intercept . | . . . . . . . . . . . . Searches Triggered . | . . . . . . . . . . . . Construction Impeded . | . . . . . . . . . . . . Haulers Reinforced 1 | . . . . . . . 1 . . . . Active Scanning Responses . | . . . . . . . . . . . . Cargo Convoy Interrupts . | . . . . . . . . . . . . Stealth | -11 -10 -10 -10 -9 -8 -8 -7 -7 -7 -7 -7 --------- Run | Yrd Mat Min Exi Min Mat Sto Fac Low Low Zio Dee Distress Signals 7 | . . . . 1 3 2 1 . . . . Communications Jammed . | . . . . . . . . . . . . Distress Signals . | . . . . . . . . . . . . Times Spotted 211 | . 16 5 . 12 43 47 46 4 24 . 14 Peak Tracking Total 10 | . 3 3 . 4 4 9 6 3 10 . 5 Tactical Retreats 9 | . 1 . . 1 3 1 . . 3 . . Traps | -11 -10 -10 -10 -9 -8 -8 -7 -7 -7 -7 -7 ------- Run | Yrd Mat Min Exi Min Mat Sto Fac Low Low Zio Dee Traps Triggered 6 | . . . . . 2 3 . . 1 . . Indirectly . | . . . . . . . . . . . . Trap Hack Attempts 105 | . 105 . . . . . . . . . . Triggered . | . . . . . . . . . . . . Disarmed 3 | . 3 . . . . . . . . . . Reprogrammed 6 | . 6 . . . . . . . . . . Reused 2 | . . . . 2 . . . . . . . Traps Extracted . | . . . . . . . . . . . . Installed 5 | . . . . 5 . . . . . . . Triggered 2 | . . . . 2 . . . . . . . Machines | -11 -10 -10 -10 -9 -8 -8 -7 -7 -7 -7 -7 ---------- Run | Yrd Mat Min Exi Min Mat Sto Fac Low Low Zio Dee Machines Disabled 15 | . . . . . 8 4 . . . 3 . Max in Single Turn 3 | . . . . . 3 1 . . . 1 . Garrison Access 1 | . . . . . . 1 . . . . . Machines Repaired . | . . . . . . . . . . . . Machines Dismantled . | . . . . . . . . . . . . Machines Sabotaged . | . . . . . . . . . . . . Overloaded Fab Kills . | . . . . . . . . . . . . Hacking | -11 -10 -10 -10 -9 -8 -8 -7 -7 -7 -7 -7 --------- Run | Yrd Mat Min Exi Min Mat Sto Fac Low Low Zio Dee Machines Accessed 55 | . 10 1 3 1 14 11 13 . 1 1 . Terminals 31 | . 8 . . 1 8 8 6 . . . . Fabricators 1 | . . . . . . . 1 . . . . Repair Stations 9 | . 1 . . . 2 2 4 . . . . Recycling Units 5 | . 1 . . . 2 . 2 . . . . Scanalyzers 2 | . . . . . 2 . . . . . . Garrison Access 1 | . . . . . . 1 . . . . . Total Hacks 200 | . 28 1 39 3 52 31 41 . 1 4 . Successful 147 | . 15 1 39 1 42 15 29 . 1 4 . Failed 52 | . 13 . . 2 9 16 12 . . . . Catastrophic 4 | . . . . . 1 2 1 . . . . Database Lockouts 1 | . . . . . 1 . . . . . . Manual 79 | . 19 . . 2 29 12 17 . . . . Terminals 95 | . 21 . . 3 28 23 20 . . . . Fabricators 4 | . . . . . . . 4 . . . . Repair Stations 33 | . 6 . . . 10 6 11 . . . . Recycling Units 13 | . 1 . . . 6 . 6 . . . . Scanalyzers 8 | . . . . . 8 . . . . . . Garrison Access 2 | . . . . . . 2 . . . . . Terminal Hacks 73 | . 3 1 39 1 7 8 9 . 1 4 . Record 40 | . . . 39 . . 1 . . . . . Part Schematic 5 | . . . . . 1 . . . . 4 . Robot Analysis 5 | . 2 . . . . . 3 . . . . Prototype ID Bank 1 | . . . . . . . 1 . . . . Open Door 6 | . . 1 . . . 4 . . 1 . . Branch Access Points 1 | . . . . . . . 1 . . . . Alert Level 3 | . . . . 1 . 1 1 . . . . Unreport Threat 5 | . . . . . 2 2 1 . . . . Locate Traps 1 | . 1 . . . . . . . . . . Hauler Manifests 1 | . . . . . 1 . . . . . . Registered Components 1 | . . . . . . . 1 . . . . Registered Prototypes 1 | . . . . . 1 . . . . . . Zone Layout 3 | . . . . . 2 . 1 . . . . Fabricator Hacks 3 | . . . . . . . 3 . . . . Load Schematic 2 | . . . . . . . 2 . . . . Build 1 | . . . . . . . 1 . . . . Repair Station Hacks 27 | . 4 . . . 10 4 9 . . . . Scan Component 14 | . 2 . . . 5 2 5 . . . . Repair 13 | . 2 . . . 5 2 4 . . . . Recycling Unit Hacks 3 | . . . . . 2 . 1 . . . . Retrieve Components 3 | . . . . . 2 . 1 . . . . Scanalyzer 7 | . . . . . 7 . . . . . . Insert Component 4 | . . . . . 4 . . . . . . Analyze 3 | . . . . . 3 . . . . . . Garrison Access Hacks 1 | . . . . . . 1 . . . . . Seal Access 1 | . . . . . . 1 . . . . . Unauthorized Hacks 33 | . 8 . . . 16 2 7 . . . . Terminals 27 | . 7 . . . 13 2 5 . . . . Botnet 14 | . 3 . . . 5 2 4 . . . . Disrupt 1 | . . . . . 1 . . . . . . Skim 12 | . 4 . . . 7 . 1 . . . . Fabricators 1 | . . . . . . . 1 . . . . Prioritize 1 | . . . . . . . 1 . . . . Repair Stations . | . . . . . . . . . . . . Recycling Units 5 | . 1 . . . 3 . 1 . . . . Monitor 1 | . . . . . 1 . . . . . . Recyclers 1 | . . . . . 1 . . . . . . Mask 2 | . . . . . 1 . 1 . . . . Tunnel 1 | . 1 . . . . . . . . . . Scanalyzers . | . . . . . . . . . . . . Garrison Access . | . . . . . . . . . . . . Data Cores Recovered . | . . . . . . . . . . . . Used . | . . . . . . . . . . . . Hacking Detections 44 | . 9 . . 1 13 9 12 . . . . Full Trace Events 3 | . . . . . . 1 2 . . . . Feedback Events . | . . . . . . . . . . . . Feedback Blocked . | . . . . . . . . . . . . Robot Schematics Acquired . | . . . . . . . . . . . . Robots Built . | . . . . . . . . . . . . Authchips . | . . . . . . . . . . . . Time . | . . . . . . . . . . . . Total Robot Build Rating . | . . . . . . . . . . . . Part Schematics Acquired 7 | . . . . . 3 . . . . 4 . Parts Built 1 | . . . . . . . 1 . . . . Authchips . | . . . . . . . . . . . . Time 31 | . . . . . . . 31 . . . . Total Part Build Rating 2 | . . . . . . . 2 . . . . Parts Repaired 13 | . 2 . . . 5 2 4 . . . . Time 490 | . 64 . . . 202 44 180 . . . . Parts Recycled . | . . . . . . . . . . . . Recycled Matter . | . . . . . . . . . . . . Retrieved Matter . | . . . . . . . . . . . . Retrieved Components 24 | . . . . . 14 . 10 . . . . Parts Scanalyzed 3 | . . . . . 3 . . . . . . Part Schematics Acquired 2 | . . . . . 2 . . . . . . Parts Damaged . | . . . . . . . . . . . . Bothacking | -11 -10 -10 -10 -9 -8 -8 -7 -7 -7 -7 -7 ------------ Run | Yrd Mat Min Exi Min Mat Sto Fac Low Low Zio Dee Used RIF Installer . | . . . . . . . . . . . . Robots Hacked 1 | . 1 . . . . . . . . . . Non-combat 1 | . 1 . . . . . . . . . . Combat . | . . . . . . . . . . . . Robot Hacks Applied 1 | . 1 . . . . . . . . . . parse_system 1 | . 1 . . . . . . . . . . Relay Couplers Released . | . . . . . . . . . . . . Fabnet Peak Effective % . | . . . . . . . . . . . . Robots Rewired 3 | . . . 3 . . . . . . . . Allies Hacked . | . . . . . . . . . . . . Hacks Repelled . | . . . . . . . . . . . . Allies | -11 -10 -10 -10 -9 -8 -8 -7 -7 -7 -7 -7 -------- Run | Yrd Mat Min Exi Min Mat Sto Fac Low Low Zio Dee Total Allies 6 | . . 1 3 . . 2 . . . . . Largest Group 3 | . . 1 3 3 . 2 . . . . . Highest-Rated Group 62 | . . 31 37 37 . 62 . . . . . Highest-Rated Ally 31 | . . 31 21 21 . 31 . . . . . Total Orders . | . . . . . . . . . . . . Ally Attacks 29 | . . 6 . 19 . 4 . . . . . Total Damage 397 | . . 84 . 233 . 80 . . . . . Kills 3 | . . 1 . 2 . . . . . . . Allies Corrupted . | . . . . . . . . . . . . Allies Melted . | . . . . . . . . . . . . Intel | -11 -10 -10 -10 -9 -8 -8 -7 -7 -7 -7 -7 ------- Run | Yrd Mat Min Exi Min Mat Sto Fac Low Low Zio Dee Robot Analysis Total 5 | . 2 . . . . . 3 . . . . Derelict Logs Recovered 7 | . . 1 . 1 . . . 2 1 2 . Drone Launches 1 | . . . . . . . . . . 1 . Drone Recoveries . | . . . . . . . . . . . . Exploration | -11 -10 -10 -10 -9 -8 -8 -7 -7 -7 -7 -7 ------------- Run | Yrd Mat Min Exi Min Mat Sto Fac Low Low Zio Dee Turns Passed 19784 | 109 1829 706 551 954 2788 1910 3136 1322 2182 2482 1815 Spaces Moved 8501 | 46 842 570 426 665 1134 736 1110 542 767 990 673 Core 3 | 2 . . . . . . . . . . 1 Treads 4344 | 44 678 . . . . 29 1110 542 767 990 184 Legs 2208 | . . . . . 1013 707 . . . . 488 Wheels 1946 | . 164 570 426 665 121 . . . . . . Hover . | . . . . . . . . . . . . Flight . | . . . . . . . . . . . . Fastest Speed 50 | 50 105 105 120 120 105 190 225 235 230 235 210 Average Speed 198 | 155 165 118 120 120 182 195 232 235 253 243 248 Slowest Speed 1750 | 160 240 120 120 120 330 305 240 235 312 312 1750 Overloaded Moves . | . . . . . . . . . . . . Propulsion Burnouts . | . . . . . . . . . . . . Robots Hopped . | . . . . . . . . . . . . Cave-ins Triggered . | . . . . . . . . . . . . Exploration Rate (%) 76 | 4 99 98 89 99 84 95 31 75 84 86 76 Regions Visited 11 Branch Regions 8 Pre-discovered Areas 6 | . 1 . 1 . 1 1 . . 1 1 . Known Exits Taken 5 | . 1 . . . 1 1 1 1 . . . Unknown Exits Taken 6 | 1 . 1 1 1 . . . . 1 1 . Scrap Searched 11 | . . 1 . 2 . . . 4 3 1 . Spaces Dug 118 | . . 18 . 27 . 12 43 . 18 . . Terrain Destroyed 412 | . . 18 . 51 63 98 51 . 90 . 41 Melee 10 | . . . . . . . 10 . . . . Projectile 1 | . . . . . 1 . . . . . . AOE 401 | . . 18 . 51 62 98 41 . 90 . 41 Terrain Rammed . | . . . . . . . . . . . . Walls Destroyed . | . . . . . . . . . . . . Machines Disabled . | . . . . . . . . . . . . Actions | -11 -10 -10 -10 -9 -8 -8 -7 -7 -7 -7 -7 --------- Run | Yrd Mat Min Exi Min Mat Sto Fac Low Low Zio Dee Total 10376 | 64 1171 591 451 762 1615 1018 1455 559 889 1039 762 Wait 693 | . 131 2 . 45 243 76 157 . 21 1 17 Move 8490 | 45 841 569 425 664 1133 735 1109 541 766 989 673 Hop . | . . . . . . . . . . . . Pick Up 132 | 4 16 4 2 4 36 21 17 . 11 6 11 Fast Attach 90 | 7 4 . 1 . 26 19 13 . 5 7 8 Attach 37 | . . 1 . . 10 2 3 1 9 1 10 Detach 5 | . 2 . . . 2 . 1 . . . . Swap 104 | . 10 3 4 4 11 27 26 2 6 3 8 Drop 144 | . 5 5 3 6 33 39 28 . 3 12 10 Fire 547 | 8 56 7 11 34 121 95 91 15 68 16 25 Melee 24 | . 1 . 5 . . 4 10 . . 4 . Ram . | . . . . . . . . . . . . Kick . | . . . . . . . . . . . . Crush . | . . . . . . . . . . . . Escape Stasis . | . . . . . . . . . . . . Rewire . | . . . . . . . . . . . . Trap 110 | . 105 . . 5 . . . . . . . Miscellaneous . | . . . . . . . . . . . . Route ------- -11/Scrapyard -10/Materials (discovered 5 exits: *Mat x3 / *Min / *Sub) -10/Mines (discovered 3 exits: *Mat x2 / *Exi) -10/Exiles -9/Mines (discovered 2 exits: *Mat x2) -8/Materials (discovered 5 exits: *Fac x3 / *Sto x2) -8/Storage (discovered 2 exits: *Fac / *Rec) -7/Factory (discovered 3 exits: Fac / *Low x2) -7/Lower Caves -7/Lower Caves (discovered 2 exits: *Fac / *Zio) -7/Zion (discovered 2 exits: [*Dee] / [*Pro]) -7/Deep Caves (discovered 1 exit: [*Pro]) History --------- Turn | Location | Event 48 | -11/Scrapyard | Discovered new exit (range 15) 110 | -11/Scrapyard | Entered Materials 304 | -10/Materials | Build established: Mutant 308 | -10/Materials | Discovered new exit (range 15) 476 | -10/Materials | Discovered new exit (range 15) 600 | -10/Materials | Repaired Lgt. Treads 639 | -10/Materials | Repaired Lgt. Nuclear Core 863 | -10/Materials | Discovered new exit (range 15) 1039 | -10/Materials | Identified exit to Materials 1137 | -10/Materials | Discovered new exit (range 12) 1153 | -10/Materials | Identified exit to Mines 1762 | -10/Materials | Discovered exit to Materials (range 16) 1926 | -10/Materials | Identified exit to Subcaves 1939 | -10/Materials | Entered Mines 1955 | -10/Mines | Discovered exit to Materials (range 14) 1968 | -10/Mines | Met a Derelict bent on vengeance 2033 | -10/Mines | Received a Rocket Launcher from a helpful Derelict 2073 | -10/Mines | Received a Mining Laser from a helpful Derelict 2146 | -10/Mines | Discovered exit to Materials (range 15) 2186 | -10/Mines | Met a Derelict who couldn't figure out how to use a Trap Extractor 2439 | -10/Mines | Learned Materials interactive machine intel 2640 | -10/Mines | Deemed a non-threat by the Exiles lab entrance 2640 | -10/Mines | Discovered new exit (range 5) 2645 | -10/Mines | Entered Exiles 2645 | -10/Exiles | Found Exiles lab destroyed 3127 | -10/Exiles | Learned location of Zion (-7) 3175 | -10/Exiles | Discovered new exit (range 14) 3196 | -10/Exiles | Entered Mines 3196 | -9/Mines | Accompanied by 3 allies 3246 | -9/Mines | Found a hidden stash of uninstalled traps 3316 | -9/Mines | Discovered new exit (range 5) 3589 | -9/Mines | Learned 8 Materials zone layouts 3616 | -9/Mines | Core integrity fell below 50% 3765 | -9/Mines | Discovered new exit (range 5) 4150 | -9/Mines | Entered Materials 4150 | -8/Materials | Evolved 4 slots: Propulsion x1, Utility x2, Weapon x1 4151 | -8/Materials | Identified exit to Factory 4151 | -8/Materials | Identified exit to Storage 4152 | -8/Materials | Loaded intel: 17 interactive machine locations 4169 | -8/Materials | Discovered exit to Storage (range 15) 4585 | -8/Materials | Build established: Tank 4909 | -8/Materials | Central database locked down 5405 | -8/Materials | Repaired Imp. Carbon-fiber Leg 5451 | -8/Materials | Repaired Imp. Carbon-fiber Leg 5484 | -8/Materials | Repaired Hcp. Storage Unit 5650 | -8/Materials | Repaired Imp. Carbon-fiber Leg 5696 | -8/Materials | Repaired Imp. Deuterium Engine 6245 | -8/Materials | Learned Factory scanalyzer intel 6274 | -8/Materials | Learned Factory stockpile data 6291 | -8/Materials | Learned 4 Factory zone layouts 6299 | -8/Materials | Learned location of 1 exit from Storage 6317 | -8/Materials | Learned 4 Recycling zone layouts 6938 | -8/Materials | Entered Storage 6940 | -8/Storage | Identified exit to Recycling 7062 | -8/Storage | Core integrity fell below 50% 7165 | -8/Storage | Garrison activated, responded to threat 7300 | -8/Storage | Repaired Imp. Carbon-fiber Leg 7645 | -8/Storage | Repaired Imp. Carbon-fiber Leg 8004 | -8/Storage | Learned location of Armory (-3) 8246 | -8/Storage | Used back door to open Recycling access 8351 | -8/Storage | Met a pair of Derelict thieves 8429 | -8/Storage | System corruption reached 10% 8433 | -8/Storage | Destroyed 7 combat bots 8624 | -8/Storage | Core integrity fell below 20% 8848 | -8/Storage | Entered Factory 8848 | -7/Factory | Evolved 2 slots: Utility x2 8849 | -7/Factory | Identified exit to Factory 8852 | -7/Factory | Loaded intel: 4 scanalyzer locations 9297 | -7/Factory | Found Powered Armor 9477 | -7/Factory | Identified exit to Lower Caves 9593 | -7/Factory | Fabricated Rocket Launcher (x1) 9654 | -7/Factory | Build established: Skirmisher 10413 | -7/Factory | Repaired Cooling System 10922 | -7/Factory | Repaired Powered Armor 10983 | -7/Factory | Repaired Prc. Beam Rifle 11044 | -7/Factory | Repaired Prc. Beam Rifle 11648 | -7/Factory | First assault squad dispatched 11984 | -7/Factory | Entered Lower Caves 12186 | -7/Lower Caves | Identified exit to Lower Caves 12205 | -7/Lower Caves | Learned Factory machine intel 12281 | -7/Lower Caves | Encountered a Warlord checkpoint 13306 | -7/Lower Caves | Entered another Lower Caves area 13447 | -7/Lower Caves | Spotted B-75 Beast 13575 | -7/Lower Caves | Lost 3 parts (1n2u) 13617 | -7/Lower Caves | Attracted the attention of an 0b10 outpost 13672 | -7/Lower Caves | Destroyed 7 combat bots 13679 | -7/Lower Caves | Lost 5 parts (2n1u2w) 13750 | -7/Lower Caves | Build established: Tank 13801 | -7/Lower Caves | Discovered exit to Factory (range 8) 14318 | -7/Lower Caves | Attracted the attention of an 0b10 checkpoint 14919 | -7/Lower Caves | Core integrity fell below 50% 15069 | -7/Lower Caves | Discovered new exit (range 13) 15488 | -7/Lower Caves | Entered Zion 15582 | -7/Zion | System corruption cleaned by Quarantine Array 15688 | -7/Zion | Discovered new exit (range 13) 15932 | -7/Zion | System corruption cleaned by Quarantine Array 16364 | -7/Zion | Given the Hacking Drone Bay 16365 | -7/Zion | Found Prototype Device 16365 | -7/Zion | Identified Hacking Drone Bay 16674 | -7/Zion | Learned 4 Factory zone layouts 17086 | -7/Zion | Learned location of Quarantine (-3) 17313 | -7/Zion | Found Prototype Device 17313 | -7/Zion | Identified Bomb Factory No. 2 17440 | -7/Zion | Found CR-A16's Pointy Stick 17716 | -7/Zion | Met Imprinter 17965 | -7/Zion | Discovered new exit (range 3) 17965 | -7/Zion | Saw the warning signs outside the Deep Caves entrance 17970 | -7/Zion | Entered Deep Caves 18310 | -7/Deep Caves | Attacked by Z-Imprinter 18336 | -7/Deep Caves | Destroyed Z-Imprinter 18360 | -7/Deep Caves | Lost 3 parts (1p2n) 18488 | -7/Deep Caves | Found Prototype Protection 18488 | -7/Deep Caves | Identified Zio. Weapon Casing 18528 | -7/Deep Caves | Z-Facility disabled 18568 | -7/Deep Caves | Core integrity fell below 20% 18595 | -7/Deep Caves | Lost 9 parts (1n5u3w) 18601 | -7/Deep Caves | Found Zio. Weapon Casing 18794 | -7/Deep Caves | Found Prototype Protection 18821 | -7/Deep Caves | Identified Zio. Heavy Carapace 18826 | -7/Deep Caves | Found Zio. Heavy Carapace 18865 | -7/Deep Caves | Build established: Mutant 19492 | -7/Deep Caves | Discovered new exit (range 6) 19495 | -7/Deep Caves | Build established: Tank 19679 | -7/Deep Caves | Spotted AG-52077 19712 | -7/Deep Caves | Destroyed AG-52077 19779 | -7/Deep Caves | Spotted AG-27186 19785 | -7/Deep Caves | Destroyed by AG-27186 with Assembled Focal Cannon Last Messages --------------- 19160_ as-17521 destroyed. 19180_ Acquired 20 matter. 19264_ Critical hit (Burn: +80). 19267_ as-99364 misfires. 19268_ as-99364 destroyed. 19275_ Acquired 20 matter. 19323_ as-50899 destroyed. 19326_ Acquired 20 matter. 19492_ EXIT=FOUND 19662_ Dropped Hcp. Matter Pod. 19663_ Extracted 200 matter. 19663_ Acquired Hcp. Matter Pod. 19681_ AG-52077: "DSI9AT1D G8OHIBQ29FWG 26R186 QD12WHW8W33 TDK1 81FTS" 19704_ Zio. Heavy Carapace destroyed. 19707_ AG-52077 misfires. 19711_ AG-52077 IFF system glitched. 19711_ 8L-RYW(g) destroyed. 19712_ AG-52077 system terminally corrupted. 19718_ Acquired 120 matter. 19783_ AG-27186: "DSI9AT1D G8OHIBQ29FWG 26R186 QD12WHW8W33 TDK1 81FTS" Map ----- +----------------------------------------------------+ | | | | | | | | | | | ?????????????????????????????????????????????? | | ?????????????????????????????????????????????? | | ?????????????????????????????????????????##### | | ?????????????????????????????????#####??## | | ????????????????????#???????????## #### | | ?????????????????#?? ??????????## ## | | ?????????????? # ? ??????????# | | ???????????? # ??##?????# | | ?????????? # ?? #?????# | | ?????????? ?? #?????## # | | ?????????"" ?? #??????##### ####### | | ?????????G ## #??????????#####?????? | | ????????" # #????????????????????# | | ????????" ????????????????????# | | ????????# ?????????????????????# | | ?????????" ?????????????????????# | | ?????????" ??????????????????????? | | ?????????" ??????????????####????? | | ?????????" ! #?###?????????## ###??? | | ?????????" #?# #?????????# #### | | ????????# = @### ####??????# | | ????????# s = # #??????# | | ????????# ####??????# | | ????????# ###??????## | | ????????# l #???????# ##### | | ????????# = ###???????# ##???# | | ????????# =g = = = ##???###?## #???## | | ????????# = = #??## ### ##### | | ????????? g g #??# ## #### | | ????????? M| #??# ### | | ?????????? | ! #??# ##### # | | ?????????? = ! #??# #??# # # | | ??????????? | ! g #??# ##?##### # | | ??????????? #?## #????## # | | ??????????? ! ### #???## # | | ?????????? = ### ##??## # | | ?????????? #?# ##???# # | | ????????? ### #????# | | ????????? ## ##??## " | | ????????? #### "" | | ????????""" * %! ## " | | ????????" | | ?????????" ##### | | ????????" #???# ## | | ?????????" ##???## ##### | +----------------------------------------------------+ Best States ------------- Heat Dissipation 75 Energy Generation 17 Energy Capacity 300 Matter Stores 300 Matter Capacity 300 Sight Range 20 Terrain Scan Range 16 Terrain Scan Density 10 Armor Coverage 1350 Resistance: TH 10 Weapon Shielding 100 Evasion (%) 45 Targeting Accuracy 6 Recoil Reduction 3 Energy Filtering 30 Salvage Targeting 4 Offensive Hacking 10 Item Schematics ----------------- Huge Storage Unit | -8/Materials | Hacked Imp. Carbon-fiber Leg | -8/Materials | Scanalyzed Rocket Launcher | -8/Materials | Scanalyzed Battle Cannon | -7/Zion | Free Enh. Flamer | -7/Zion | Free Ripper | -7/Zion | Free Hvy. Beamcaster | -7/Zion | Free Robot Schematics ------------------ None Fabricated ------------ Rocket Launcher | x1 | -7/Factory Alien Tech Used ----------------- None Achievements -------------- None Challenges ------------ None Game ------ Seed BoltPhaseRegenerator Manual? 0 Play Time 02:06:16 Cumulative 31.9 hours Start 2024.10.08 @ 12:17:45 End 2024.10.08 @ 14:36:27 Sessions 1 Manual Loads 0 Difficulty Rogue Special Mode None Game No. 22 Rogue 22 Adventurer 0 Explorer 0 Win Type - Total 1 Types 0/0/0/1/0/0/0/0/0 Lore% 33 Gallery% 58 Achievement% 77 Wizard Run 0 Options --------- Layout 0 ASCII 0 Keyboard 0 Movement Mouse Keybinds 0 Fullscreen 1 Font 24/Smallcaps Map View 113x50 Zoom Use 0% Tactical HUD 1 Map Filters NONE Filters NONE Steam 1 RUN: 0de9e6d6-78b0-41dc-8815-53fa93d176c3